fUSD/lending_fUSD_20241106
["ID","MTS","AMOUNT","RATE_DAILY","PERIOD"]
[341478162,1730920268429,-525.88,0.00028767,2]
[341478163,1730920268439,-500.0,0.00028767,2]
[341478164,1730920268449,-500.0,0.00028767,2]
[341478165,1730920268459,-711.29,0.00028767,2]
[341478166,1730920268470,-500.0,0.00028767,2]
[341478167,1730920268480,-1234.48,0.00028767,2]
[341478168,1730920268490,-500.0,0.00028767,2]
[341478169,1730920268501,-500.0,0.00028767,2]
[341478170,1730920268512,-500.0,0.00028767,2]
[341478171,1730920268523,-500.0,0.00028767,2]
[341478172,1730920268534,-500.0,0.00028767,2]
[341478173,1730920268544,-1153.06,0.00028767,2]
[341478174,1730920268555,-500.0,0.00028767,2]
[341478175,1730920268567,-500.0,0.00028767,2]
[341478176,1730920268577,-500.0,0.00028767,2]
[341478177,1730920268586,-472.07394609,0.00028767,2]
[341478178,1730920268598,-500.0,0.00028767,2]
[341478179,1730920268607,-500.0,0.00028767,2]
[341478180,1730920268616,-957.34,0.00028767,2]
[341478181,1730920268627,-500.0,0.00028767,2]
[341478182,1730920268638,-608.58278118,0.00028767,2]
[341478183,1730920268648,-500.0,0.00028767,2]
[341478184,1730920268659,-500.0,0.00028767,2]
[341478185,1730920268671,-500.0,0.00028767,2]
[341478186,1730920268681,-1196.66,0.00028767,2]
[341478187,1730920268693,-500.0,0.00028767,2]
[341478188,1730920268706,-500.0,0.00028767,2]
[341478189,1730920268716,-1001.64,0.00028767,2]
[341478190,1730920268728,-500.0,0.00028767,2]
[341478191,1730920268740,-500.0,0.00028767,2]
[341478192,1730920268751,-1472.58,0.00028767,2]
[341478193,1730920268762,-500.0,0.00028767,2]
[341478194,1730920268775,-500.0,0.00028767,2]
[341478195,1730920268787,-500.0,0.00028767,2]
[341478196,1730920268799,-1605.02,0.00028767,2]
[341478197,1730920268810,-271.12,0.00028767,2]
[341478198,1730920268820,-652.62,0.00028767,2]
[341478199,1730920268830,-500.0,0.00028767,2]
[341478200,1730920268840,-500.0,0.00028767,2]
[341478201,1730920268852,-500.0,0.00028767,2]
[341478202,1730920268861,-500.0,0.00028767,2]
[341478203,1730920268870,-500.0,0.00028767,2]
[341478204,1730920268879,-500.0,0.00028767,2]
[341478205,1730920268889,-1379.21,0.00028767,2]
[341478206,1730920268902,-500.0,0.00028767,2]
[341478207,1730920268912,-1209.69,0.00028767,2]
[341478208,1730920268921,-500.0,0.00028767,2]
[341478209,1730920268931,-500.0,0.00028767,2]
[341478210,1730920268940,-221.34139723,0.00028767,2]
[341478211,1730920268950,-1638.01,0.00028767,2]
[341478212,1730920268959,-500.0,0.00028767,2]
[341478213,1730920268968,-500.0,0.00028767,2]
[341478214,1730920268978,-1179.88,0.00028767,2]
[341478215,1730920268987,-500.0,0.00028767,2]
[341478216,1730920268997,-500.0,0.00028767,2]
[341478217,1730920269008,-639.69,0.00028767,2]
[341478218,1730920269020,-600.21,0.00028767,2]
[341478219,1730920269031,-500.0,0.00028767,2]
[341478220,1730920269040,-500.0,0.00028767,2]
[341478221,1730920269050,-500.0,0.00028767,2]
[341478222,1730920269059,-500.0,0.00028767,2]
[341478223,1730920269068,-912.36,0.00028767,2]
[341478224,1730920269078,-500.0,0.00028767,2]
[341478225,1730920269087,-500.0,0.00028767,2]
[341478226,1730920269097,-508.65,0.00028767,2]
[341478227,1730920269109,-537.89909749,0.00028767,2]
[341478228,1730920269119,-500.0,0.00028767,2]
[341478229,1730920269128,-500.0,0.00028767,2]
[341478230,1730920269138,-500.0,0.00028767,2]
[341478231,1730920269148,-610.62,0.00028767,2]
[341478232,1730920269157,-500.0,0.00028767,2]
[341478233,1730920269167,-500.0,0.00028767,2]
[341478234,1730920269177,-500.0,0.00028767,2]
[341478235,1730920269187,-500.0,0.00028767,2]
[341478236,1730920269196,-451.03527696,0.00028767,2]
[341478237,1730920269206,-500.0,0.00028767,2]
[341478238,1730920269215,-500.0,0.00028767,2]
[341478239,1730920269224,-500.0,0.00028767,2]
[341478240,1730920269234,-500.0,0.00028767,2]
[341478241,1730920269244,-1403.53,0.00028767,2]
[341478242,1730920269253,-951.98,0.00028767,2]
[341478243,1730920269263,-500.0,0.00028767,2]
[341478244,1730920269272,-500.0,0.00028767,2]
[341478245,1730920269282,-500.0,0.00028767,2]
[341478246,1730920269291,-500.0,0.00028767,2]
[341478247,1730920269300,-1718.49,0.00028767,2]
[341478248,1730920269310,-500.0,0.00028767,2]
[341478249,1730920269319,-770.26,0.00028767,2]
[341478250,1730920269328,-534.23,0.00028767,2]
[341478251,1730920269337,-886.88,0.00028767,2]
[341478252,1730920269346,-500.0,0.00028767,2]
[341478253,1730920269356,-500.0,0.00028767,2]
[341478254,1730920269365,-500.0,0.00028767,2]
[341478255,1730920269375,-591.92,0.00028767,2]
[341478256,1730920269384,-3128.73,0.00028767,2]
[341478257,1730920269394,-151.0,0.00028767,7]
[341478258,1730920269410,-1587.38,0.00028767,2]
[341478259,1730920269431,-500.0,0.00028767,2]
[341478260,1730920269441,-1225.74,0.00028767,2]
[341478261,1730920269450,-500.0,0.00028767,2]
[341478262,1730920269460,-672.38,0.00028767,2]
[341478263,1730920269469,-591.16378453,0.00028767,2]
[341478264,1730920269478,-151.0,0.00028767,7]
[341478265,1730920269487,-151.0,0.00028767,7]
[341478266,1730920269497,-631.72,0.00028767,2]
[341478267,1730920269506,-500.0,0.00028767,2]
[341478268,1730920269515,-277.404964,0.00028767,7]
[341478269,1730920269524,-1710.63,0.00028767,2]
[341478270,1730920269533,-500.0,0.00028767,2]
[341478271,1730920269544,-500.0,0.00028767,2]
[341478272,1730920269553,-500.0,0.00028767,2]
[341478273,1730920269562,-151.0,0.00028767,7]
[341478274,1730920269571,-813.74,0.00028767,2]
[341478275,1730920269580,-500.0,0.00028767,2]
[341478276,1730920269589,-498.69132494,0.00028767,2]
[341478277,1730920269606,-500.0,0.00028767,2]
[341478278,1730920269616,-500.0,0.00028767,2]
[341478279,1730920269626,-747.59,0.00028767,2]
[341478280,1730920269637,-1093.9,0.00028767,2]
[341478281,1730920269646,-500.0,0.00028767,2]
[341478282,1730920269655,-500.0,0.00028767,2]
[341478283,1730920269664,-500.0,0.00028767,2]
[341478284,1730920269673,-500.0,0.00028767,2]
[341478285,1730920269682,-500.0,0.00028767,2]
[341478286,1730920269691,-500.0,0.00028767,2]
[341478287,1730920269701,-559.12,0.00028767,2]
[341478288,1730920269712,-500.0,0.00028767,2]
[341478289,1730920269723,-500.0,0.00028767,2]
[341478290,1730920269732,-151.0,0.00028767,7]
[341478291,1730920269741,-151.0,0.00028767,7]
[341478292,1730920269750,-869.22,0.00028767,2]
[341478293,1730920269760,-500.0,0.00028767,2]
[341478294,1730920269769,-151.0,0.00028767,7]
[341478295,1730920269777,-815.31,0.00028767,2]
[341478296,1730920269787,-828.15,0.00028767,2]
[341478297,1730920269796,-151.0,0.00028767,7]
[341478298,1730920269805,-500.0,0.00028767,2]
[341478299,1730920269815,-948.69,0.00028767,2]
[341478300,1730920269824,-151.0,0.00028767,7]
[341478301,1730920269833,-500.0,0.00028767,2]
[341478302,1730920269842,-500.0,0.00028767,2]
[341478303,1730920269852,-6450.1,0.00028767,2]
[341478304,1730920269861,-712.2,0.00028767,2]
[341478305,1730920269870,-500.0,0.00028767,2]
[341478306,1730920269879,-1961.14,0.00028767,2]
[341478307,1730920269888,-2553.79,0.00028767,2]
[341478308,1730920269898,-933.76,0.00028767,2]
[341478309,1730920269907,-500.0,0.00028767,2]
[341478310,1730920269916,-500.0,0.00028767,2]
[341478311,1730920269926,-619.47,0.00028767,2]
[341478312,1730920269936,-214.80291194,0.00028767,2]
[341478313,1730920269945,-1552.17,0.00028767,2]
[341478314,1730920269954,-852.71,0.00028767,2]
[341478315,1730920269964,-500.0,0.00028767,2]
[341478316,1730920269973,-985.31,0.00028767,2]
[341478317,1730920269982,-500.0,0.00028767,2]
[341478318,1730920269991,-234.076632,0.00028767,7]
[341478319,1730920270002,-1319.54,0.00028767,2]
[341478320,1730920270011,-234.076632,0.00028767,7]
[341478321,1730920270020,-500.0,0.00028767,2]
[341478322,1730920270031,-1040.45,0.00028767,2]
[341478323,1730920270040,-175.088611,0.00028767,7]
[341478324,1730920270049,-544.73,0.00028767,2]
[341478325,1730920270058,-1047.75,0.00028767,2]
[341478326,1730920270067,-175.088611,0.00028767,7]
[341478327,1730920270077,-1243.71,0.00028767,2]
[341478328,1730920270089,-809.24,0.00028767,2]
[341478329,1730920270106,-500.0,0.00028767,2]
[341478330,1730920270121,-500.0,0.00028767,2]
[341478331,1730920270130,-508.7,0.00028767,2]
[341478332,1730920270140,-2961.59,0.00028767,2]
[341478333,1730920270150,-1768.07,0.00028767,2]
[341478334,1730920270159,-500.0,0.00028767,2]
[341478335,1730920270169,-500.0,0.00028767,2]
[341478336,1730920270178,-3662.42,0.00028767,2]
[341478337,1730920270187,-500.0,0.00028767,2]
[341478338,1730920270196,-500.0,0.00028767,2]
[341478339,1730920270207,-626.81,0.00028767,2]
[341478340,1730920270217,-543.01,0.00028767,2]
[341478341,1730920270226,-706.05,0.00028767,2]
[341478342,1730920270235,-500.0,0.00028767,2]
[341478343,1730920270245,-500.0,0.00028767,2]
[341478344,1730920270255,-500.0,0.00028767,2]
[341478345,1730920270264,-651.62,0.00028767,2]
[341478346,1730920270274,-541.73729986,0.00028767,2]
[341478347,1730920270283,-2251.89,0.00028767,2]
[341478348,1730920270292,-500.0,0.00028767,2]
[341478349,1730920270302,-1884.31,0.00028767,2]
[341478350,1730920270311,-732.87,0.00028767,2]
[341478351,1730920270320,-500.0,0.00028767,2]
[341478352,1730920270330,-500.0,0.00028767,2]
[341478353,1730920270339,-500.0,0.00028767,2]
[341478354,1730920270349,-2703.76,0.00028767,2]
[341478355,1730920270358,-759.2,0.00028767,2]
[341478356,1730920270367,-730.51,0.00028767,2]
[341478357,1730920270377,-601.73,0.00028767,2]
[341478358,1730920270387,-351.01517171,0.00028767,2]
[341478359,1730920270396,-500.0,0.00028767,2]
[341478360,1730920270405,-1846.6,0.00028767,2]
[341478361,1730920270414,-500.0,0.00028767,2]
[341478362,1730920270423,-500.0,0.00028767,2]
[341478363,1730920270433,-500.0,0.00028767,2]
[341478364,1730920270442,-500.0,0.00028767,2]
[341478365,1730920270451,-2388.47,0.00028767,2]
[341478366,1730920270460,-217.442755,0.00028767,2]
[341478367,1730920270469,-10275.63,0.00028767,2]
[341478368,1730920270478,-500.0,0.00028767,2]
[341478369,1730920270488,-1087.87,0.00028767,2]
[341478370,1730920270497,-228.879307,0.00028767,2]
[341478371,1730920270506,-500.0,0.00028767,2]
[341478372,1730920270515,-1027.83,0.00028767,2]
[341478373,1730920270524,-934.72,0.00028767,2]
[341478374,1730920270534,-369.15738637,0.00028767,2]
[341478375,1730920270543,-500.0,0.00028767,2]
[341478376,1730920270552,-500.0,0.00028767,2]
[341478377,1730920270561,-500.0,0.00028767,2]
[341478378,1730920270571,-680.02,0.00028767,2]
[341478379,1730920270580,-984.02,0.00028767,2]
[341478380,1730920270589,-2654.17,0.00028767,2]
[341478381,1730920270600,-500.0,0.00028767,2]
[341478382,1730920270608,-763.29,0.00028767,2]
[341478383,1730920270618,-2923.01,0.00028767,2]
[341478384,1730920270629,-500.0,0.00028767,2]
[341478385,1730920270639,-500.0,0.00028767,2]
[341478386,1730920270648,-500.0,0.00028767,2]
[341478387,1730920270657,-500.0,0.00028767,2]
[341478388,1730920270666,-1057.64,0.00028767,2]
[341478389,1730920270676,-500.0,0.00028767,2]
[341478390,1730920270685,-511.61049997,0.00028767,2]
[341478391,1730920270694,-500.0,0.00028767,2]
[341478392,1730920270706,-500.0,0.00028767,2]
[341478393,1730920270720,-500.0,0.00028767,2]
[341478394,1730920270729,-669.62,0.00028767,2]
[341478395,1730920270740,-718.6,0.00028767,2]
[341478396,1730920270750,-500.0,0.00028767,2]
[341478397,1730920270762,-3084.36,0.00028767,2]
[341478398,1730920270772,-500.0,0.00028767,2]
[341478399,1730920270783,-500.0,0.00028767,2]
[341478400,1730920270792,-727.89,0.00028767,2]
[341478401,1730920270803,-1861.65,0.00028767,2]
[341478402,1730920270815,-500.0,0.00028767,2]
[341478403,1730920270826,-36940.57,0.00028767,2]
[341478404,1730920270836,-500.0,0.00028767,2]
[341478405,1730920270847,-174.22788734,0.00028767,2]
[341478406,1730920270857,-1316.34,0.00028767,2]
[341478407,1730920270866,-500.0,0.00028767,2]
[341478408,1730920270876,-3009.75,0.00028767,2]
[341478409,1730920270888,-500.0,0.00028767,2]
[341478410,1730920270898,-500.0,0.00028767,2]
[341478411,1730920270909,-1149.45,0.00028767,2]
[341478412,1730920270918,-500.0,0.00028767,2]
[341478413,1730920270928,-500.0,0.00028767,2]
[341478414,1730920270938,-580.25,0.00028767,2]
[341478415,1730920270948,-539.21,0.00028767,2]
[341478416,1730920270958,-4459.35,0.00028767,2]
[341478417,1730920270968,-6541.84,0.00028767,2]
[341478418,1730920270977,-1631.52,0.00028767,2]
[341478419,1730920270987,-777.39,0.00028767,2]
[341478420,1730920270996,-500.0,0.00028767,2]
[341478421,1730920271005,-500.0,0.00028767,2]
[341478422,1730920271014,-500.0,0.00028767,2]
[341478423,1730920271023,-2448.68,0.00028767,2]
[341478424,1730920271032,-1611.55,0.00028767,2]
[341478425,1730920271041,-1675.07,0.00028767,2]
[341478426,1730920271050,-2842.56,0.00028767,2]
[341478427,1730920271060,-500.0,0.00028767,2]
[341478428,1730920271069,-2090.64,0.00028767,2]
[341478429,1730920271079,-729.17,0.00028767,2]
[341478430,1730920271090,-4119.94,0.00028767,2]
[341478431,1730920271100,-500.0,0.00028767,2]
[341478432,1730920271109,-500.0,0.00028767,2]
[341478433,1730920271119,-1561.32,0.00028767,2]
[341478434,1730920271128,-500.0,0.00028767,2]
[341478435,1730920271137,-1446.82,0.00028767,2]
[341478436,1730920271146,-908.03,0.00028767,2]
[341478437,1730920271155,-500.0,0.00028767,2]
[341478438,1730920271165,-500.0,0.00028767,2]
[341478439,1730920271175,-500.0,0.00028767,2]
[341478440,1730920271184,-151.0,0.00028767,7]
[341478441,1730920271193,-1649.61,0.00028767,2]
[341478442,1730920271203,-500.0,0.00028767,2]
[341478443,1730920271213,-3168.62,0.00028767,2]
[341478444,1730920271222,-3106.24,0.00028767,2]
[341478445,1730920271232,-731.26,0.00028767,2]
[341478446,1730920271241,-3266.44,0.00028767,2]
[341478447,1730920271252,-500.0,0.00028767,2]
[341478448,1730920271261,-500.0,0.00028767,2]
[341478449,1730920271273,-752.29,0.00028767,2]
[341478450,1730920271283,-500.0,0.00028767,2]
[341478451,1730920271294,-714.92,0.00028767,2]
[341478452,1730920271305,-2478.44,0.00028767,2]
[341478453,1730920271316,-645.24,0.00028767,2]
[341478454,1730920271326,-822.65,0.00028767,2]
[341478455,1730920271336,-2093.22,0.00028767,2]
[341478456,1730920271345,-500.0,0.00028767,2]
[341478457,1730920271356,-6208.06,0.00028767,2]
[341478458,1730920271365,-1251.86,0.00028767,2]
[341478459,1730920271374,-2267.91,0.00028767,2]
[341478460,1730920271383,-932.36,0.00028767,2]
[341478461,1730920271392,-500.0,0.00028767,2]
[341478462,1730920271404,-1161.0,0.00028767,2]
[341478463,1730920271415,-831.94,0.00028767,2]
[341478464,1730920271425,-726.61,0.00028767,2]
[341478465,1730920271435,-627.41,0.00028767,2]
[341478466,1730920271446,-500.0,0.00028767,2]
[341478467,1730920271455,-1064.72,0.00028767,2]
[341478468,1730920271466,-1820.52,0.00028767,2]
[341478469,1730920271481,-1990.87,0.00028767,2]
[341478470,1730920271492,-750.06,0.00028767,2]
[341478471,1730920271503,-5050.46,0.00028767,2]
[341478472,1730920271514,-500.0,0.00028767,2]
[341478473,1730920271524,-10580.04,0.00028767,2]
[341478474,1730920271536,-1538.2,0.00028767,2]
[341478475,1730920271546,-500.0,0.00028767,2]
[341478476,1730920271557,-1128.8,0.00028767,2]
[341478477,1730920271569,-332.30323392,0.00028767,2]
[341478478,1730920271578,-500.0,0.00028767,2]
[341478479,1730920271587,-500.0,0.00028767,2]
[341478480,1730920271598,-7716.34,0.00028767,2]
[341478481,1730920271609,-151.0,0.00028767,7]
[341478482,1730920271620,-3986.66,0.00028767,2]
[341478483,1730920271836,-500.0,0.00028767,2]
[341478484,1730920271846,-656.74,0.00028767,2]
[341478485,1730920271856,-500.63,0.00028767,2]
[341478486,1730920271866,-5027.84,0.00028767,2]
[341478487,1730920271876,-500.0,0.00028767,2]
[341478488,1730920271885,-4036.63,0.00028767,2]
[341478489,1730920271894,-500.0,0.00028767,2]
[341478490,1730920271903,-6250.81,0.00028767,2]
[341478491,1730920271913,-934.04,0.00028767,2]
[341478492,1730920271923,-500.0,0.00028767,2]
[341478493,1730920271933,-500.0,0.00028767,2]
[341478494,1730920271944,-2428.87,0.00028767,2]
[341478495,1730920271955,-3700.97,0.00028767,2]
[341478496,1730920271966,-151.0,0.00028767,7]
[341478497,1730920271978,-1135.07,0.00028767,2]
[341478498,1730920271989,-3817.82,0.00028767,2]
[341478499,1730920272002,-3046.7,0.00028767,2]
[341478500,1730920272011,-3060.48,0.00028767,2]
[341478501,1730920272020,-740.35,0.00028767,2]
[341478502,1730920272029,-179.08826412,0.00028767,2]
[341478503,1730920272038,-500.0,0.00028767,2]
[341478504,1730920272048,-1194.34,0.00028767,2]
[341478505,1730920272056,-3836.62,0.00028767,2]
[341478506,1730920272066,-4916.89,0.00028767,2]
[341478507,1730920272075,-500.0,0.00028767,2]
[341478508,1730920272084,-3245.5,0.00028767,2]
[341478509,1730920272094,-151.0,0.00028767,7]
[341478510,1730920272104,-1506.02,0.00028767,2]
[341478511,1730920272115,-256.347905,0.00028767,7]
[341478512,1730920272125,-2015.43,0.00028767,2]
[341478513,1730920272135,-151.0,0.00028767,7]
[341478514,1730920272145,-512.382164,0.00028767,7]
[341478515,1730920272155,-500.0,0.00028767,2]
[341478516,1730920272165,-1997.41,0.00028767,2]
[341478517,1730920272174,-548.49,0.00028767,2]
[341478518,1730920272184,-500.0,0.00028767,2]
[341478519,1730920272194,-500.0,0.00028767,2]
[341478520,1730920272204,-1188.15,0.00028767,2]
[341478521,1730920272213,-512.382164,0.00028767,7]
[341478522,1730920272223,-3551.02,0.00028767,2]
[341478523,1730920272233,-151.0,0.00028767,7]
[341478524,1730920272243,-9431.91,0.00028767,2]
[341478525,1730920272253,-500.0,0.00028767,2]
[341478526,1730920272263,-500.0,0.00028767,2]
[341478527,1730920272273,-500.0,0.00028767,2]
[341478528,1730920272283,-543.87,0.00028767,2]
[341478529,1730920272292,-500.0,0.00028767,2]
[341478530,1730920272302,-2959.67,0.00028767,2]
[341478531,1730920272312,-843.81,0.00028767,2]
[341478532,1730920272321,-151.0,0.00028767,7]
[341478533,1730920272331,-500.0,0.00028767,2]
[341478534,1730920272342,-2640.34,0.00028767,2]
[341478535,1730920272353,-2985.74,0.00028767,2]
[341478536,1730920272575,-643.72,0.00028767,2]
[341478537,1730920272587,-500.0,0.00028767,2]
[341478538,1730920272597,-500.0,0.00028767,2]
[341478539,1730920272607,-3511.16,0.00028767,2]
[341478540,1730920272617,-642.61,0.00028767,2]
[341478541,1730920272631,-528.21,0.00028767,2]
[341478542,1730920272642,-151.0,0.00028767,7]
[341478543,1730920272651,-500.0,0.00028767,2]
[341478544,1730920272661,-636.38,0.00028767,2]
[341478545,1730920272670,-500.0,0.00028767,2]
[341478546,1730920272680,-500.0,0.00028767,2]
[341478547,1730920272690,-836.94,0.00028767,2]
[341478548,1730920272700,-817.7,0.00028767,2]
[341478549,1730920272712,-1645.62,0.00028767,2]
[341478550,1730920272722,-500.0,0.00028767,2]
[341478551,1730920272732,-500.0,0.00028767,2]
[341478552,1730920272742,-820.62,0.00028767,2]
[341478553,1730920272752,-500.0,0.00028767,2]
[341478554,1730920272761,-1697.61,0.00028767,2]
[341478555,1730920272771,-1293.6,0.00028767,2]
[341478556,1730920272781,-365.10844843,0.00028767,2]
[341478557,1730920272790,-500.0,0.00028767,2]
[341478558,1730920272800,-643.83,0.00028767,2]
[341478559,1730920272810,-4036.84,0.00028767,2]
[341478560,1730920272819,-2894.45,0.00028767,2]
[341478561,1730920272829,-500.0,0.00028767,2]
[341478562,1730920272839,-500.0,0.00028767,2]
[341478563,1730920272848,-639.10829673,0.00028767,2]
[341478564,1730920272859,-500.0,0.00028767,2]
[341478565,1730920272869,-500.0,0.00028767,2]
[341478566,1730920272878,-500.0,0.00028767,2]
[341478567,1730920272888,-200.0,0.000288,2]
[341478568,1730920272897,-661.67,0.00028899,2]
[341478569,1730920272907,-1127.0,0.000289,3]
[341478570,1730920272917,-12200.0,0.000289,10]
[341478571,1730920272926,-1500.0,0.0002895,2]
[341478572,1730920272936,-1500.0,0.00028983,2]
[341478573,1730920272946,-450.0,0.00029,2]
[341478574,1730920272956,-661.67,0.0002904,2]
[341478575,1730920272966,-500.0,0.00029041,2]
[341478576,1730920272975,-500.0,0.00029041,2]
[341478577,1730920272985,-500.0,0.00029041,2]
[341478578,1730920272995,-2920.66,0.00029041,2]
[341478579,1730920273004,-500.0,0.00029041,2]
[341478580,1730920273015,-614.25,0.00029041,2]
[341478581,1730920273024,-574.18,0.00029041,2]
[341478582,1730920273034,-500.0,0.00029041,2]
[341478583,1730920273043,-582.35550074,0.00029041,2]
[341478584,1730920273055,-500.0,0.00029041,2]
[341478585,1730920273066,-500.0,0.00029041,2]
[341478586,1730920273076,-1205.75,0.00029041,2]
[341478587,1730920273085,-750.76,0.00029041,2]
[341478588,1730920273094,-500.0,0.00029041,2]
[341478589,1730920273105,-198.28148996,0.00029041,2]
[341478590,1730920273115,-500.0,0.00029041,2]
[341478591,1730920273125,-597.6789618,0.00029041,2]
[341478592,1730920273135,-1062.35,0.00029041,2]
[341478593,1730920273144,-500.0,0.00029041,2]
[341478594,1730920273155,-997.57,0.00029041,2]
[341478595,1730920273164,-500.0,0.00029041,2]
[341478596,1730920273174,-500.0,0.00029041,2]
[341478597,1730920273184,-500.0,0.00029041,2]
[341478598,1730920273194,-500.0,0.00029041,2]
[341478599,1730920273204,-500.0,0.00029041,2]
[341478600,1730920273214,-273.09127532,0.00029041,2]
[341478601,1730920273223,-500.0,0.00029041,2]
[341478602,1730920273233,-500.0,0.00029041,2]
[341478603,1730920273243,-1292.06,0.00029041,2]
[341478604,1730920273254,-500.0,0.00029041,2]
[341478605,1730920273264,-500.0,0.00029041,2]
[341478606,1730920273274,-500.0,0.00029041,2]
[341478607,1730920273284,-500.0,0.00029041,2]
[341478608,1730920273294,-500.0,0.00029041,2]
[341478609,1730920273303,-500.0,0.00029041,2]
[341478610,1730920273314,-1826.45,0.00029041,2]
[341478611,1730920273323,-621.32,0.00029041,2]
[341478612,1730920273333,-500.0,0.00029041,2]
[341478613,1730920273343,-663.78,0.00029041,2]
[341478614,1730920273352,-546.43,0.00029041,2]
[341478615,1730920273366,-500.0,0.00029041,2]
[341478616,1730920273376,-500.0,0.00029041,2]
[341478617,1730920273386,-617.91,0.00029041,2]
[341478618,1730920273396,-500.0,0.00029041,2]
[341478619,1730920273406,-500.0,0.00029041,2]
[341478620,1730920273416,-1790.04,0.00029041,2]
[341478621,1730920273426,-500.0,0.00029041,2]
[341478622,1730920273436,-500.0,0.00029041,2]
[341478623,1730920273446,-1554.56,0.00029041,2]
[341478624,1730920273455,-500.0,0.00029041,2]
[341478625,1730920273465,-500.0,0.00029041,2]
[341478626,1730920273475,-525.88,0.00029041,2]
[341478627,1730920273485,-500.0,0.00029041,2]
[341478628,1730920273495,-500.0,0.00029041,2]
[341478629,1730920273504,-711.29,0.00029041,2]
[341478630,1730920273514,-500.0,0.00029041,2]
[341478631,1730920273523,-1234.48,0.00029041,2]
[341478632,1730920273532,-500.0,0.00029041,2]
[341478633,1730920273542,-500.0,0.00029041,2]
[341478634,1730920273551,-500.0,0.00029041,2]
[341478635,1730920273561,-1153.06,0.00029041,2]
[341478636,1730920273570,-500.0,0.00029041,2]
[341478637,1730920273580,-500.0,0.00029041,2]
[341478638,1730920273589,-500.0,0.00029041,2]
[341478639,1730920273598,-500.0,0.00029041,2]
[341478640,1730920273610,-500.0,0.00029041,2]
[341478641,1730920273619,-957.34,0.00029041,2]
[341478642,1730920273629,-500.0,0.00029041,2]
[341478643,1730920273640,-500.0,0.00029041,2]
[341478644,1730920273650,-500.0,0.00029041,2]
[341478645,1730920273659,-500.0,0.00029041,2]
[341478646,1730920273668,-1196.66,0.00029041,2]
[341478647,1730920273678,-500.0,0.00029041,2]
[341478648,1730920273687,-500.0,0.00029041,2]
[341478649,1730920273698,-1001.64,0.00029041,2]
[341478650,1730920273707,-500.0,0.00029041,2]
[341478651,1730920273717,-500.0,0.00029041,2]
[341478652,1730920273727,-1472.58,0.00029041,2]
[341478653,1730920273736,-500.0,0.00029041,2]
[341478654,1730920273746,-500.0,0.00029041,2]
[341478655,1730920273755,-500.0,0.00029041,2]
[341478656,1730920273765,-1605.02,0.00029041,2]
[341478657,1730920273774,-271.12,0.00029041,2]
[341478658,1730920273784,-652.62,0.00029041,2]
[341478659,1730920273794,-500.0,0.00029041,2]
[341478660,1730920273803,-500.0,0.00029041,2]
[341478661,1730920273813,-606.49942385,0.00029041,2]